bitfinex/quotes_ETHUSD_20250404
["timestamp","ask_amount","ask_price","bid_price","bid_amount"]
[1743764082841,7.6402,1784.2,1783.7,5.60628]
[1743764083161,7.6402,1784.2,1783.6,12.77149]
[1743764083324,9.45977084,1784.2,1783.8,5.60593]
[1743764083523,7.6402,1784.2,1783.9,5.60565]
[1743764083949,6.06,1784.2,1784.0,5.60528]
[1743764084521,6.06,1784.2,1783.9,5.60558]
[1743764084722,6.06,1784.2,1784.0,5.60525]
[1743764084944,6.06,1784.2,1783.9,5.60554]
[1743764085155,6.06,1784.3,1784.0,5.60514]
[1743764085325,6.06,1784.3,1783.9,6.325584]
[1743764085526,1.5383,1784.2,1783.3,11.6395]
[1743764085737,6.06,1784.1,1783.4,5.60726]
[1743764085936,6.06,1784.1,1783.3,11.6395]
[1743764085937,6.299,1784.0,1783.6,5.60643]
[1743764086331,7.5349,1784.0,1783.6,5.60643]
[1743764086532,7.5349,1784.0,1783.5,5.60689]
[1743764086830,7.5349,1784.0,1783.5,11.21378]
[1743764087030,6.06,1783.9,1783.3,1.6395]
[1743764087249,6.06,1783.9,1783.5,5.60669]
[1743764087464,6.06,1783.9,1783.6,5.60661]
[1743764087764,12.359,1784.0,1783.9,5.60569]
[1743764087964,6.06,1784.2,1784.1,5.60506]
[1743764088339,6.06,1784.3,1783.8,5.606]
[1743764088551,6.06,1784.3,1783.6,1.6083]
[1743764088866,6.06,1784.3,1784.0,5.60522]
[1743764089158,6.299,1784.2,1783.9,5.60559]
[1743764089669,6.299,1784.2,1783.8,5.60597]
[1743764089843,7.5349,1784.2,1783.7,5.60628]
[1743764090038,7.5349,1784.2,1783.8,11.2118]
[1743764090249,6.299,1784.2,1783.9,5.60562]
[1743764090658,6.299,1784.2,1783.8,11.21169]
[1743764090968,6.299,1784.2,1783.9,5.60568]
[1743764091156,6.299,1784.2,1783.9,11.21122]
[1743764091353,6.299,1784.2,1784.0,5.60536]
[1743764091553,6.299,1784.2,1783.9,5.60553]
[1743764091770,6.299,1784.2,1783.8,5.60592]
[1743764091992,7.5349,1784.2,1783.7,5.6063]
[1743764092262,7.5349,1784.2,1783.8,5.60589]
[1743764092442,7.5349,1784.2,1783.7,5.60604]
[1743764092639,2.1239,1784.1,1783.6,5.6066]
[1743764092854,6.06,1784.0,1783.6,11.21309]
[1743764093050,6.06,1784.0,1783.6,5.60649]
[1743764093277,6.06,1784.0,1783.8,5.60584]
[1743764093465,6.06,1784.0,1783.9,5.60569]
[1743764094267,6.06,1784.0,1783.8,5.60584]
[1743764094632,7.7218,1784.0,1783.7,5.60631]
[1743764095234,6.06,1783.9,1783.4,5.60707]
[1743764095435,6.298,1783.8,1783.5,5.60684]
[1743764096078,6.298,1783.8,1783.5,5.60679]
[1743764096482,6.06,1783.7,1783.2,5.60778]
[1743764096665,1.5718,1783.6,1783.2,5.60778]
[1743764096860,7.6318,1783.6,1783.2,5.60778]
[1743764097080,7.6318,1783.6,1783.2,11.2155]
[1743764097442,7.6318,1783.6,1783.2,11.21549]
[1743764097670,7.6318,1783.6,1783.3,5.60754]
[1743764097946,7.6318,1783.6,1783.2,5.60772]
[1743764097947,7.6318,1783.6,1783.2,11.21546]
[1743764098147,7.6318,1783.6,1783.2,5.60772]
[1743764098746,7.6318,1783.6,1783.2,12.337048]
[1743764098947,7.6318,1783.6,1783.3,5.60758]
[1743764099781,7.6318,1783.6,1783.4,5.60712]
[1743764099937,6.06,1783.6,1783.5,5.60695]
[1743764100140,6.06,1783.6,1783.2,6.729368]
[1743764100338,6.06,1783.6,1783.0,7.16729]
[1743764100339,6.06,1783.6,1783.3,5.60756]
[1743764100541,6.06,1783.6,1783.3,5.60736]
[1743764101080,6.06,1783.6,1783.4,5.60716]
[1743764101580,6.06,1783.7,1783.6,5.60663]
[1743764101894,6.06,1784.0,1783.6,5.60663]
[1743764102126,1.02079418,1784.7,1783.9,5.60569]
[1743764102127,6.298,1784.3,1783.9,5.60569]
[1743764102420,13.9368,1784.4,1783.7,6.166933]
[1743764102623,13.9368,1784.4,1783.8,5.606]
[1743764102624,1.5788,1784.3,1783.8,5.606]
[1743764102777,1.5788,1784.3,1783.9,5.60562]
[1743764102971,1.5788,1784.3,1783.9,5.60553]
[1743764103199,1.5788,1784.3,1783.8,1.1772933]
[1743764103429,1.5788,1784.3,1783.4,5.60722]
[1743764103430,5.60527,1784.1,1783.4,5.60722]
[1743764103579,2.1548,1783.9,1783.4,5.60722]
[1743764103773,6.06,1783.8,1783.4,5.60722]
[1743764103981,6.06,1783.8,1783.6,5.60633]
[1743764104299,6.06,1783.8,1783.7,5.60632]
[1743764105407,6.06,1783.8,1783.6,5.60633]
[1743764105616,6.06,1783.8,1783.7,5.60632]
[1743764106605,6.06,1783.8,1783.6,11.21284]
[1743764107008,6.06,1783.8,1783.5,5.60666]
[1743764107212,6.06,1783.8,1783.3,5.60756]
[1743764107213,1.5738,1783.7,1783.3,5.60756]
[1743764107399,6.298,1783.6,1783.2,11.21561]
[1743764107606,6.298,1783.6,1783.2,5.60774]
[1743764107809,6.298,1783.6,1783.4,5.60722]
[1743764108126,6.298,1783.6,1783.5,5.60695]
[1743764108486,6.298,1783.6,1783.3,5.60745]
[1743764108996,6.298,1783.6,1783.5,5.60695]
[1743764109728,6.06,1783.9,1783.5,5.60695]
[1743764109729,12.357,1783.9,1783.8,5.606]
[1743764110102,12.357,1783.9,1783.4,1.6661]
[1743764110301,12.357,1783.9,1783.1,0.42584549]
[1743764110302,13.74629,1783.9,1783.5,5.60681]
[1743764110717,13.74629,1783.9,1783.5,5.6068]
[1743764110905,12.357,1783.9,1783.5,5.6068]
[1743764111820,12.357,1783.9,1783.4,5.60725]
[1743764112327,0.55,1783.7,1783.2,5.60764]
[1743764112493,0.55,1783.7,1783.2,11.21544]
[1743764112693,0.55,1783.7,1783.2,5.60764]
[1743764112905,2.492672,1783.7,1783.2,5.60764]
[1743764113208,1.5195,1783.6,1783.1,5.6081]
[1743764113400,6.297,1783.5,1783.3,5.60739]
[1743764113635,6.06,1783.4,1783.3,12.78248]
[1743764113791,6.06,1783.8,1783.5,5.60685]
[1743764113988,6.06,1783.8,1783.4,5.60725]
[1743764114218,0.55,1783.7,1783.3,5.60743]
[1743764114709,0.55,1783.7,1783.1,1.5677]
[1743764114903,7.6835,1783.6,1782.7,1.665]
[1743764115199,7.6835,1783.6,1783.2,5.6078]
[1743764115200,6.297,1783.5,1783.2,5.6078]
[1743764115521,6.297,1783.5,1783.3,5.60755]
[1743764115846,6.297,1783.5,1783.3,5.60752]
[1743764116056,6.297,1783.5,1783.3,6.728978]
[1743764116354,1.5654,1783.3,1783.0,5.60822]
[1743764116505,6.61,1783.2,1782.8,5.60911]
[1743764116710,6.61,1783.2,1782.6,10.0]
[1743764116711,6.297,1783.1,1782.6,5.60971]
[1743764116910,1.5654,1783.0,1782.6,5.60963]
[1743764117333,1.5654,1783.0,1782.5,5.61006]
[1743764117536,1.5476,1782.8,1782.3,10.0]
[1743764117737,12.906,1782.7,1782.2,5.61081]
[1743764117915,12.906,1782.7,1782.2,11.2217]
[1743764118433,0.55,1782.5,1782.0,5.61164]
[1743764118617,0.55,1782.5,1782.0,5.61153]
[1743764118824,0.55,1782.5,1782.0,5.61149]
[1743764119020,1.585,1782.4,1781.9,5.61197]
[1743764119342,12.356,1782.3,1782.1,5.61108]
[1743764119542,6.06,1782.3,1782.2,6.172148]
[1743764119747,12.356,1782.6,1782.5,5.61009]
[1743764120448,12.356,1782.6,1782.4,5.61027]
[1743764120644,12.356,1782.6,1782.2,6.172108]
[1743764120824,12.356,1782.6,1782.2,5.61086]
[1743764121225,12.356,1782.6,1782.3,5.61053]
[1743764121433,12.356,1782.6,1782.3,5.61071]
[1743764121612,12.356,1782.6,1782.2,11.22171]
[1743764121812,1.5681,1782.5,1782.2,11.22171]
[1743764122035,1.5681,1782.5,1782.2,5.61085]
[1743764122655,1.5681,1782.5,1782.1,11.22241]
[1743764122947,6.06,1782.4,1781.8,5.6123]
[1743764123149,6.06,1782.4,1782.3,5.61072]
[1743764123931,12.356,1782.6,1782.5,5.61009]
[1743764124131,6.06,1782.6,1782.5,5.61009]
[1743764124539,6.06,1782.9,1782.7,5.60933]
[1743764124708,12.356,1783.0,1782.9,5.60883]
[1743764124910,12.356,1783.0,1782.8,5.60915]
[1743764125349,12.356,1783.0,1781.2,5.61404]
[1743764125350,0.6023,1782.1,1781.2,5.61404]
[1743764125563,0.55,1781.9,1781.4,5.61333]
[1743764125711,0.6627,1781.7,1781.3,5.61369]
[1743764126052,6.3,1781.6,1781.5,6.16324]
[1743764126354,6.85,1781.6,1781.5,0.55]
[1743764126757,10.69490457,1781.6,1781.5,0.55]
[1743764126911,23.95063457,1781.6,1781.5,0.55]
[1743764127115,18.33770457,1781.6,1781.5,0.55]
[1743764127721,14.4928,1781.6,1781.5,0.55]
[1743764128360,23.10573,1781.6,1781.5,0.55]
[1743764130248,3.0,1781.1,1780.0,10.0]
[1743764130414,0.6023,1780.4,1780.0,10.0]
[1743764130617,6.06,1780.3,1780.2,5.61734]
[1743764130855,0.6023,1780.8,1780.5,5.61628]
[1743764131027,6.387,1780.6,1780.4,5.61659]
[1743764131351,6.387,1780.6,1780.1,1.5807]
[1743764131563,6.06,1780.5,1780.1,5.66748]
[1743764131762,6.06,1780.8,1780.3,1.5307]
[1743764132058,6.06,1780.8,1780.4,5.61655]
[1743764132221,6.06,1780.8,1780.5,5.61621]
[1743764132422,6.06,1780.9,1780.4,5.61644]
[1743764132617,6.06,1780.9,1780.5,5.61628]
[1743764132932,6.39,1780.9,1780.6,5.61607]
[1743764133129,6.39,1780.9,1780.7,5.61564]
[1743764133342,6.39,1780.9,1780.7,11.23129]
[1743764133513,6.06,1781.0,1780.9,5.61513]
[1743764133713,12.443,1781.2,1780.8,5.61545]
[1743764133943,12.443,1781.2,1780.8,6.176995]
[1743764134149,12.443,1781.2,1780.8,11.792285]
[1743764134351,12.443,1781.2,1780.9,5.61511]
[1743764134656,12.443,1781.2,1780.9,5.61494]
[1743764134820,12.443,1781.2,1781.0,11.22931]
[1743764135017,12.443,1781.2,1781.0,5.61463]
[1743764135346,12.443,1781.2,1780.8,2.092245]
[1743764135552,6.06,1781.5,1781.4,5.61356]
[1743764135752,6.06,1781.7,1781.3,5.61375]
[1743764136465,6.06,1781.7,1781.2,5.61418]
[1743764136625,6.06,1781.7,1781.1,5.61447]
[1743764136823,6.16321,1781.6,1781.0,5.6148]
[1743764137032,6.06,1781.5,1781.0,6.737764]
[1743764137246,6.06,1781.5,1781.1,5.67038278]
[1743764137557,6.06,1781.5,1781.1,5.61424]
[1743764137953,6.06,1781.5,1781.0,6.737644]
[1743764138266,7.9183,1781.4,1780.9,5.61498]
[1743764138420,7.9183,1781.4,1781.0,5.6147]
[1743764138621,7.9183,1781.4,1780.8,7.14598]
[1743764138845,7.9183,1781.4,1780.9,5.61504]
[1743764139048,7.9183,1781.4,1780.8,7.14601]
[1743764139253,13.53202,1781.4,1780.8,5.61531]
[1743764139560,5.61432,1781.2,1780.6,5.61603]
[1743764139720,6.06,1781.2,1780.8,5.6153]
[1743764139924,6.06,1781.2,1780.6,5.61584]
[1743764140161,6.06,1781.2,1780.7,5.61564]
[1743764140347,6.06,1781.2,1780.5,7.696608]
[1743764140664,1.5442,1781.1,1780.6,5.61608]
[1743764140863,6.345,1781.0,1780.5,2.080228]
[1743764141164,6.345,1781.0,1780.9,5.61513]
[1743764141369,6.345,1781.0,1780.8,5.61519]
[1743764141666,6.345,1781.0,1780.5,1.5186]
[1743764141867,6.345,1781.0,1780.9,5.61513]
[1743764142172,13.9805,1781.6,1781.4,5.61353]
[1743764142375,6.06,1781.6,1781.5,5.61324]
[1743764142571,6.06,1781.6,1781.4,11.22698]
[1743764142868,6.06,1781.6,1781.4,5.61345]
[1743764143073,6.06,1781.6,1781.5,5.61324]
[1743764143574,12.412,1781.7,1781.5,5.61324]
[1743764143868,12.412,1781.7,1781.5,5.61322]
[1743764144379,12.412,1781.7,1781.6,5.61293]
[1743764144562,6.06,1782.0,1781.8,5.61208]
[1743764144866,6.34,1782.2,1782.1,5.61135]
[1743764145065,6.34,1782.2,1782.0,5.61159]
[1743764145066,6.34,1782.2,1782.0,5.6115]
[1743764145668,6.34,1782.2,1782.0,11.223]
[1743764145982,6.34,1782.2,1782.0,5.61148]
[1743764146464,6.34,1782.2,1782.0,6.172628]
[1743764146678,6.34,1782.2,1782.1,5.61135]
[1743764146880,6.06,1782.6,1782.0,6.172788]
[1743764147175,6.06,1782.6,1782.2,7.16093]
[1743764147691,6.06,1782.6,1782.3,11.22114]
[1743764147895,6.06,1782.6,1782.2,1.55]
[1743764148184,6.06,1782.6,1782.0,2.134148]
[1743764148384,6.06,1782.6,1782.2,11.22159]
[1743764148593,6.06,1782.6,1782.2,5.61073]
[1743764148787,6.06,1782.6,1782.3,5.61067]
[1743764148951,6.06,1782.6,1782.2,5.61073]
[1743764149281,6.06,1782.6,1782.3,5.61072]
[1743764149662,6.06,1782.6,1782.2,5.61073]
[1743764149874,6.06,1782.6,1782.3,5.61064]
[1743764150045,6.06,1782.6,1782.2,6.732935]
[1743764150378,6.06,1782.6,1782.1,5.61118]
[1743764150951,6.06,1782.6,1782.0,1.573]
[1743764151152,6.06,1782.6,1782.2,5.61083]
[1743764151487,7.6817,1782.7,1782.3,5.61061]
[1743764151703,7.6817,1782.7,1782.4,5.61014]
[1743764151986,6.06,1782.7,1782.6,5.60978]
[1743764152183,12.363,1782.8,1782.6,5.60978]
[1743764152381,12.363,1782.8,1782.6,5.60965]
[1743764152566,0.05,1782.9,1782.8,5.60915]
[1743764152771,0.05,1782.9,1782.8,5.66523552]
[1743764152976,0.05,1782.9,1782.8,8.38461955]
[1743764153149,0.05,1782.9,1782.8,12.24012716]
[1743764153150,1e-05,1782.9,1782.8,12.24012716]
[1743764153346,1e-05,1782.9,1782.8,15.24012716]
[1743764153746,1e-05,1782.9,1782.8,11.38461955]
[1743764155089,7.6886,1783.8,1783.5,5.6069]
[1743764155263,13.9906,1783.8,1783.5,5.60683]
[1743764155664,12.362,1783.8,1783.5,5.60683]
[1743764155872,7.6925,1784.2,1783.7,5.60629]
[1743764156194,6.06,1784.2,1784.1,5.60506]
[1743764156353,1.6325,1784.6,1784.5,5.60381]
[1743764156554,6.06,1784.7,1784.5,5.60365]
[1743764156755,6.06,1784.7,1784.4,5.60404]
[1743764156961,6.06,1784.7,1784.3,5.60442]
[1743764157164,6.84521084,1784.7,1784.3,5.60442]
[1743764157374,6.06,1784.7,1784.3,5.60431]
[1743764157597,6.06,1784.7,1784.2,7.11937]
[1743764157917,6.06,1784.7,1784.3,5.60441]
[1743764158082,6.06,1784.7,1784.4,5.60408]
[1743764158420,6.06,1784.8,1784.6,5.60346]
[1743764158909,6.06,1784.8,1784.6,11.2066]
[1743764159116,6.06,1784.8,1784.7,5.60318]
[1743764159428,0.1363,1785.0,1784.2,1.5147]
[1743764159699,0.1363,1785.0,1784.2,7.11942]
[1743764160002,0.1363,1785.0,1784.7,5.60298]
[1743764160203,0.1363,1785.0,1784.6,5.60343]
[1743764160399,6.1963,1785.0,1784.5,5.60368]
[1743764160599,7.8428,1785.0,1784.2,1.5147]
[1743764160899,7.8428,1785.0,1784.5,5.60377]
[1743764161203,6.1963,1785.0,1784.8,5.60271]
[1743764161401,0.1363,1785.0,1784.7,5.60301]
[1743764161700,0.1363,1785.0,1784.7,5.60317]
[1743764161905,0.1363,1785.0,1784.6,5.60349]
[1743764161906,0.1363,1785.0,1784.6,5.60334]
[1743764162584,0.1363,1785.0,1784.2,1.5147]
[1743764162585,0.1363,1785.0,1784.8,5.60271]
[1743764162781,0.1363,1785.0,1784.9,5.65857429]
[1743764162986,0.1363,1785.0,1784.9,5.60255]
[1743764163598,1e-05,1785.0,1784.9,5.60255]
[1743764163806,1e-05,1785.0,1784.9,5.65856457]
[1743764164105,1e-05,1785.0,1784.9,5.60255]
[1743764164305,1e-05,1785.0,1784.9,6.7791031]
[1743764165090,1e-05,1785.0,1784.9,5.60255]
[1743764166006,1e-05,1785.0,1784.8,5.60271]
[1743764166208,1e-05,1785.0,1784.7,7.23068]
[1743764166396,1e-05,1785.0,1784.8,5.60274]
[1743764166587,1e-05,1785.0,1784.9,5.60255]
[1743764167194,1e-05,1785.0,1784.9,7.24445]
[1743764168588,1e-05,1785.0,1784.9,11.529169]
[1743764169413,1e-05,1785.0,1784.9,15.38467661]
[1743764170482,1e-05,1785.0,1784.9,11.529169]
[1743764171593,1e-05,1785.0,1784.9,8.529169]
[1743764171777,1e-05,1785.0,1784.9,7.24445]
[1743764174501,1e-05,1785.0,1784.9,5.60255]
[1743764175028,1e-05,1785.0,1784.9,5.6585635]
[1743764175412,1e-05,1785.0,1784.9,5.60255]
[1743764176900,1e-05,1785.0,1784.9,5.65857011]
[1743764177158,1e-05,1785.0,1784.9,10.28895401]
[1743764177318,1e-05,1785.0,1784.9,11.84765401]
[1743764177518,1e-05,1785.0,1784.9,15.70316162]
[1743764177718,7.6899,1786.0,1785.8,5.59973]
[1743764178063,7.6899,1786.3,1785.8,5.6557235]
[1743764178223,7.6899,1786.3,1785.8,8.92249735]
[1743764178549,1.6299,1786.3,1785.8,8.92249735]
[1743764179557,1.6299,1786.3,1785.5,6.85550761]
[1743764179558,1.6299,1786.3,1785.5,1.6314]
[1743764179739,1.5542,1785.9,1785.2,1.6314]
[1743764180726,7.6142,1785.9,1785.0,28.459]
[1743764180924,0.55,1785.8,1785.0,1.58]
[1743764181159,1.6284,1785.7,1785.0,1.58]
[1743764181362,13.29426,1785.6,1784.7,10.0]
[1743764181655,1.6339,1785.4,1784.5,1.5178]
[1743764181808,6.289,1785.3,1784.5,1.5178]
[1743764182005,12.349,1785.3,1784.5,1.5178]
[1743764182334,12.349,1785.3,1784.6,5.60335]
[1743764182652,12.349,1785.3,1784.8,5.60285]
[1743764182850,12.349,1785.3,1784.6,5.6034]
[1743764183154,12.349,1785.3,1784.5,1.5178]
[1743764183155,12.349,1785.3,1784.9,5.60253]
[1743764183506,12.349,1785.3,1784.8,5.60262]
[1743764183815,12.349,1785.3,1784.8,6.723196]
[1743764184208,12.349,1785.3,1784.6,5.60345]
[1743764184552,12.349,1785.3,1784.9,5.60228]
[1743764184755,12.349,1785.3,1785.0,5.65817466]
[1743764184971,1.6339,1785.4,1785.1,5.60192]
[1743764185107,12.349,1785.6,1785.2,11.20295]
[1743764185308,12.349,1785.6,1785.2,1.120295]
[1743764185560,12.349,1785.6,1785.1,5.60173]
[1743764185737,12.349,1785.6,1785.0,7.16263]
[1743764185909,12.349,1785.6,1785.0,4.5604]
[1743764186109,12.349,1785.6,1785.0,7.16248]
[1743764186320,12.349,1785.6,1785.0,1.5604]
[1743764186504,12.349,1785.6,1785.0,12.76469]
[1743764186710,12.349,1785.6,1785.0,7.1625]
[1743764186953,12.349,1785.6,1784.9,8.6025]
[1743764187150,12.349,1785.6,1784.9,3.0]
[1743764187441,12.349,1785.6,1785.1,5.60168]
[1743764187821,12.349,1785.6,1785.0,5.60214]
[1743764188016,12.349,1785.6,1784.9,8.60229]
[1743764188221,12.349,1785.6,1784.9,14.20467]
[1743764188421,12.349,1785.6,1784.9,8.60229]
[1743764188748,17.94947,1785.6,1784.8,7.19895]
[1743764189053,12.349,1785.6,1784.8,7.19889]
[1743764189210,12.349,1785.6,1784.8,8.479092]
[1743764189410,12.349,1785.6,1784.9,5.6025]
[1743764189605,12.349,1785.6,1785.0,0.05601474]
[1743764189944,12.349,1785.6,1785.1,5.60192]
[1743764190141,12.349,1785.6,1784.9,5.60241]
[1743764190461,12.349,1785.6,1785.0,3.0]
[1743764190639,12.349,1785.6,1784.5,7.15736]
[1743764190640,7.12203,1785.4,1784.5,7.15736]
[1743764190941,0.55,1785.1,1784.5,5.6038]
[1743764191142,11.89028,1785.0,1784.3,1.5537]
[1743764191369,11.89028,1785.0,1783.9,5.60566]
[1743764191370,5.603,1784.8,1783.9,5.60566]
[1743764191524,0.55,1784.6,1783.9,5.60566]
[1743764191732,6.288,1784.5,1784.1,4.0]
[1743764192135,1.5873,1784.3,1784.1,4.0]
[1743764192368,7.6473,1784.3,1784.1,4.0]
[1743764192662,7.6473,1784.3,1783.5,11.774383]
[1743764192839,7.6473,1784.3,1783.6,5.6066]
[1743764193161,0.55,1784.2,1783.7,3.0]
[1743764193454,7.6473,1784.3,1783.8,5.606]
[1743764193662,6.288,1784.2,1783.7,5.60619]
[1743764193966,6.288,1784.2,1783.8,0.560619]
[1743764194161,6.288,1784.2,1783.8,3.0]
[1743764194452,6.288,1784.2,1783.7,3.0]
[1743764195419,6.288,1784.2,1783.8,0.05605252]
[1743764195739,6.288,1784.2,1783.7,3.0]
[1743764196745,6.288,1784.2,1783.8,5.606]
[1743764197048,6.288,1784.2,1783.8,6.727217]
[1743764197216,7.6473,1784.3,1783.9,5.60568]
[1743764197557,6.289,1784.2,1783.8,3.0]
[1743764198247,6.289,1784.2,1783.6,3.0]
[1743764198649,6.61,1784.1,1783.6,3.0]
[1743764198955,6.61,1784.1,1783.5,3.560683]
[1743764199154,0.55,1783.9,1783.2,15.60772]
[1743764199346,7.9128,1783.8,1783.2,15.60772]
[1743764199653,7.9128,1783.8,1783.3,5.60739]
[1743764200166,7.9128,1783.8,1783.6,5.60661]
[1743764200369,7.9128,1783.8,1783.5,3.0]
[1743764200673,7.9128,1783.8,1783.5,9.46753]
[1743764201520,7.9128,1783.8,1783.5,3.86071]
[1743764202759,6.291,1783.9,1783.5,5.60685]
[1743764203123,6.291,1783.9,1783.5,3.0]
[1743764203322,6.291,1783.9,1783.5,8.60693]
[1743764204054,6.291,1783.9,1783.6,5.6065]
[1743764204224,6.291,1783.9,1783.7,3.0]
[1743764204625,6.291,1783.9,1783.5,3.0]
[1743764204959,6.291,1783.9,1783.4,8.60711]
[1743764205254,6.291,1783.9,1783.4,10.028672]
[1743764205441,6.291,1783.9,1783.2,5.60777]
[1743764205646,1.5983,1783.7,1783.3,3.0]
[1743764205854,7.6583,1783.7,1783.3,3.0]
[1743764206167,11.66637,1783.7,1782.9,5.60878]
[1743764206368,1.5942,1783.5,1782.8,15.60903]
[1743764206665,1.5154,1783.3,1782.8,7.730849]
[1743764206852,6.06,1783.2,1782.8,5.121849]
[1743764207059,6.06,1783.2,1782.8,2.121849]
[1743764207398,6.06,1783.2,1782.8,3.0]
[1743764207667,6.06,1783.2,1782.8,5.60893]
[1743764207869,6.06,1783.2,1782.8,3.0]
[1743764208059,6.06,1783.2,1783.0,11.21676]
[1743764208459,6.06,1783.2,1782.9,5.60878]
[1743764208659,6.06,1783.2,1782.9,6.730571]
[1743764208967,6.06,1783.2,1782.7,3.0]
[1743764209269,1.5727,1782.9,1782.5,10.0]
[1743764209572,1.5727,1782.9,1782.6,0.05609823]
[1743764209573,7.6327,1782.9,1782.6,0.05609823]
[1743764209768,6.06,1782.9,1782.6,11.21922]
[1743764209973,6.06,1782.9,1782.6,5.60976]
[1743764210199,6.06,1782.9,1782.2,5.61086]
[1743764210340,7.8517,1782.8,1782.2,5.61086]
[1743764210686,13.9117,1782.8,1782.1,5.61132]
[1743764210887,13.9117,1782.8,1782.0,15.61149]
[1743764211037,13.9117,1782.8,1782.0,5.61149]
[1743764211237,1.6496,1782.6,1782.0,5.61149]
[1743764211840,1.6496,1782.6,1781.8,5.61226]
[1743764211841,5.60979,1782.6,1781.8,5.61226]
[1743764212196,5.60979,1782.6,1781.7,11.22512]
[1743764212197,1.5907,1782.4,1781.7,11.22512]
[1743764212360,6.06,1782.3,1781.7,11.22512]
[1743764212684,6.06,1782.3,1781.7,5.61256]
[1743764212899,1.5028,1782.2,1781.6,5.61279]
[1743764213047,6.293,1782.1,1781.6,5.61279]
[1743764213588,6.293,1782.1,1781.6,5.61273]
[1743764213756,6.293,1782.1,1781.5,5.6132]
[1743764213960,6.293,1782.1,1781.4,5.61355]
[1743764214172,7.7065,1782.0,1781.4,6.174905]
[1743764214356,7.7065,1782.0,1781.4,3.61748386]
[1743764214563,7.7065,1782.0,1781.5,5.6132]
[1743764215067,7.7065,1782.0,1781.3,5.61386]
[1743764215677,1.5699,1781.8,1781.1,6.07518346]
[1743764215874,6.292,1781.7,1781.2,6.22157835]
[1743764216271,6.292,1781.7,1781.2,0.60751835]
[1743764216577,6.292,1781.7,1781.1,5.6645]
[1743764216751,6.06,1781.6,1781.1,0.05]
[1743764217779,6.06,1781.6,1781.3,5.61376]
[1743764217980,6.06,1781.6,1781.1,0.05]
[1743764218284,1.5378,1781.5,1781.1,0.05]
[1743764218873,6.06,1781.4,1781.1,0.05]
[1743764219181,2.0997,1781.2,1781.1,0.05]
[1743764219342,8.1597,1781.2,1781.1,0.05]
[1743764219547,13.77389,1781.2,1781.1,0.05]
[1743764219779,13.72999,1781.2,1781.1,0.05]
[1743764221164,8.1158,1781.2,1781.1,0.05]
[1743764221368,5.61514,1780.9,1780.4,0.55]
[1743764221569,0.55,1780.7,1780.4,0.55]
[1743764221881,7.641,1780.6,1780.4,0.55]
[1743764222577,7.641,1780.6,1780.4,6.16658]
[1743764222763,7.641,1780.6,1780.4,0.55]
[1743764223747,6.01,1780.6,1780.4,0.55]
[1743764223953,6.01,1780.6,1780.4,1.166679]
[1743764224382,6.296,1780.9,1780.6,5.61577]
[1743764224579,6.296,1780.9,1780.4,6.783149]
[1743764224773,6.296,1780.9,1780.4,6.783269]
[1743764224972,6.296,1780.9,1780.5,6.2945969]
[1743764225287,7.5411,1781.0,1780.6,5.67202663]
[1743764225488,6.01,1781.0,1780.8,5.61534]
[1743764225650,1.6054,1781.5,1781.0,5.61457]
[1743764225853,7.9034,1781.5,1781.0,5.61463]
[1743764226165,7.9034,1781.5,1781.0,5.67077183]
[1743764226491,6.01,1781.6,1781.0,5.67077183]
[1743764226492,6.01,1781.6,1781.5,5.61324]
[1743764226686,7.9334,1781.7,1781.5,5.61312]
[1743764226892,6.298,1782.1,1781.7,5.61254]
[1743764227185,1.6354,1782.2,1781.6,5.61274]
[1743764227394,1.6354,1782.2,1781.7,5.61247]
[1743764227588,1.6354,1782.2,1781.7,1.122521]
[1743764227891,1.6354,1782.2,1781.7,5.61246]
[1743764228254,1.6354,1782.2,1781.6,5.61267]
[1743764228455,1.6354,1782.2,1781.3,4.6297]
[1743764228659,6.01,1782.1,1781.4,5.61328]
[1743764228866,6.01,1782.1,1781.5,5.61322]
[1743764229066,6.01,1782.1,1781.5,6.174542]
[1743764229299,6.01,1782.1,1781.6,5.61291]
[1743764229462,6.01,1782.1,1781.5,6.174542]
[1743764229666,6.01,1782.1,1781.5,6.174352]
[1743764229866,6.01,1782.1,1781.6,5.61289]
[1743764230100,6.01,1782.1,1781.5,6.174352]
[1743764230314,6.01,1782.1,1781.5,11.787382]
[1743764230459,6.01,1782.1,1781.6,6.84759054]
[1743764230663,6.01,1782.1,1781.6,12.46033054]
[1743764230896,6.01,1782.1,1781.7,5.61254]
[1743764231097,12.307,1782.1,1781.7,5.61254]
[1743764231263,12.307,1782.1,1781.5,6.174302]
[1743764231464,12.307,1782.1,1781.3,10.24349]
[1743764231768,12.307,1782.1,1781.4,11.22695]